Workbook

Sheet RGB data
A1: Ring 1 | F1: 0.01 | J1: 1
A2: R | B2: G | C2: B | D2: RGB | E2: RGB idx | F2: Rdc | G2: Gdc | H2: Bdc | J2: Rdc | K2: Gdc | L2: Bdc
A3: 255 | B3: 0 | C3: 0 | D3: =_xlfn.CONCAT("[",A3,",",B3,",",C3,"]") -> [255,0,0] | E3: =C3+B3*256+A3*256*256 -> 16711680 | F3: 0.8998 | G3: 0.9997 | H3: 0.9997 | J3: 0 | K3: 0.9997 | L3: 0.9997
A4: 255 | B4: 0 | C4: 63 | D4: =_xlfn.CONCAT("[",A4,",",B4,",",C4,"]") -> [255,0,63] | E4: =C4+B4*256+A4*256*256 -> 16711743 | F4: 0.8728 | G4: 0.9547 | H4: 0.9631 | J4: 0 | K4: 0.8207 | L4: 0.9044
A5: 255 | B5: 0 | C5: 126 | D5: =_xlfn.CONCAT("[",A5,",",B5,",",C5,"]") -> [255,0,126] | E5: =C5+B5*256+A5*256*256 -> 16711806 | F5: 0.8727 | G5: 0.9542 | H5: 0.9467 | J5: 0 | K5: 0.8145 | L5: 0.7889
A6: 255 | B6: 0 | C6: 190 | D6: =_xlfn.CONCAT("[",A6,",",B6,",",C6,"]") -> [255,0,190] | E6: =C6+B6*256+A6*256*256 -> 16711870 | F6: 0.8727 | G6: 0.9531 | H6: 0.9152 | J6: 0 | K6: 0.8022 | L6: 0.425
A7: 255 | B7: 0 | C7: 255 | D7: =_xlfn.CONCAT("[",A7,",",B7,",",C7,"]") -> [255,0,255] | E7: =C7+B7*256+A7*256*256 -> 16711935 | F7: 0.8786 | G7: 0.9521 | H7: 0.8727 | J7: 0.0584 | K7: 0.7946 | L7: 0
A8: 190 | B8: 0 | C8: 255 | D8: =_xlfn.CONCAT("[",A8,",",B8,",",C8,"]") -> [190,0,255] | E8: =C8+B8*256+A8*256*256 -> 12452095 | F8: 0.9219 | G8: 0.9587 | H8: 0.8727 | J8: 0.4919 | K8: 0.8601 | L8: 0
A9: 126 | B9: 0 | C9: 255 | D9: =_xlfn.CONCAT("[",A9,",",B9,",",C9,"]") -> [126,0,255] | E9: =C9+B9*256+A9*256*256 -> 8257791 | F9: 0.9501 | G9: 0.9631 | H9: 0.8727 | J9: 0.7746 | K9: 0.9029 | L9: 0
A10: 63 | B10: 0 | C10: 255 | D10: =_xlfn.CONCAT("[",A10,",",B10,",",C10,"]") -> [63,0,255] | E10: =C10+B10*256+A10*256*256 -> 4129023 | F10: 0.9652 | G10: 0.9652 | H10: 0.8727 | J10: 0.9245 | K10: 0.9252 | L10: 0
A11: 0 | B11: 0 | C11: 255 | D11: =_xlfn.CONCAT("[",A11,",",B11,",",C11,"]") -> [0,0,255] | E11: =C11+B11*256+A11*256*256 -> 255 | F11: 0.9997 | G11: 0.9997 | H11: 0.8998 | J11: 0.9997 | K11: 0.9997 | L11: 0
A12: 0 | B12: 63 | C12: 255 | D12: =_xlfn.CONCAT("[",A12,",",B12,",",C12,"]") -> [0,63,255] | E12: =C12+B12*256+A12*256*256 -> 16383 | F12: 0.9677 | G12: 0.9514 | H12: 0.8727 | J12: 0.9486 | K12: 0.7856 | L12: 0
A13: 0 | B13: 126 | C13: 255 | D13: =_xlfn.CONCAT("[",A14,",",B13,",",C13,"]") -> [0,126,255] | E13: =C13+B13*256+A13*256*256 -> 32511 | F13: 0.9606 | G13: 0.9037 | H13: 0.8727 | J13: 0.8782 | K13: 0.3091 | L13: 0
A14: 0 | B14: 190 | C14: 255 | D14: =_xlfn.CONCAT("[",A14,",",B14,",",C14,"]") -> [0,190,255] | E14: =C14+B14*256+A14*256*256 -> 48895 | F14: 0.9557 | G14: 0.8727 | H14: 0.9091 | J14: 0.8301 | K14: 0 | L14: 0.3648
A15: 0 | B15: 255 | C15: 255 | D15: =_xlfn.CONCAT("[",A15,",",B15,",",C15,"]") -> [0,255,255] | E15: =C15+B15*256+A15*256*256 -> 65535 | F15: 0.9555 | G15: 0.8727 | H15: 0.9375 | J15: 0.8285 | K15: 0 | L15: 0.6469
A16: 0 | B16: 255 | C16: 190 | D16: =_xlfn.CONCAT("[",A16,",",B16,",",C16,"]") -> [0,255,190] | E16: =C16+B16*256+A16*256*256 -> 65470 | F16: 0.9555 | G16: 0.8727 | H16: 0.9524 | J16: 0.8273 | K16: 0 | L16: 0.7964
A17: 0 | B17: 255 | C17: 126 | D17: =_xlfn.CONCAT("[",A17,",",B17,",",C17,"]") -> [0,255,126] | E17: =C17+B17*256+A17*256*256 -> 65406 | F17: 0.9555 | G17: 0.8727 | H17: 0.9621 | J17: 0.8266 | K17: 0 | L17: 0.8937
A18: 0 | B18: 255 | C18: 63 | D18: =_xlfn.CONCAT("[",A18,",",B18,",",C18,"]") -> [0,255,63] | E18: =C18+B18*256+A18*256*256 -> 65343 | F18: 0.9553 | G18: 0.8727 | H18: 0.9672 | J18: 0.8264 | K18: 0 | L18: 0.9452
A19: 0 | B19: 255 | C19: 0 | D19: =_xlfn.CONCAT("[",A19,",",B19,",",C19,"]") -> [0,255,0] | E19: =C19+B19*256+A19*256*256 -> 65280 | F19: 0.9997 | G19: 0.8998 | H19: 0.9997 | J19: 0.9997 | K19: 0 | L19: 0.9997
A20: 63 | B20: 255 | C20: 0 | D20: =_xlfn.CONCAT("[",A20,",",B20,",",C20,"]") -> [63,255,0] | E20: =C20+B20*256+A20*256*256 -> 4194048 | F20: 0.9539 | G20: 0.8727 | H20: 0.9689 | J20: 0.8115 | K20: 0 | L20: 0.9609
A21: 126 | B21: 255 | C21: 0 | D21: =_xlfn.CONCAT("[",A21,",",B21,",",C21,"]") -> [126,255,0] | E21: =C21+B21*256+A21*256*256 -> 8322816 | F21: 0.9491 | G21: 0.8727 | H21: 0.9687 | J21: 0.7638 | K21: 0 | L21: 0.9601
A22: 190 | B22: 255 | C22: 0 | D22: =_xlfn.CONCAT("[",A22,",",B22,",",C22,"]") -> [190,255,0] | E22: =C22+B22*256+A22*256*256 -> 12517120 | F22: 0.9404 | G22: 0.8727 | H22: 0.9687 | J22: 0.6753 | K22: 0 | L22: 0.959
A23: 255 | B23: 255 | C23: 0 | D23: =_xlfn.CONCAT("[",A23,",",B23,",",C23,"]") -> [255,255,0] | E23: =C23+B23*256+A23*256*256 -> 16776960 | F23: 0.927 | G23: 0.8727 | H23: 0.9685 | J23: 0.5426 | K23: 0 | L23: 0.957
A24: 255 | B24: 190 | C24: 0 | D24: =_xlfn.CONCAT("[",A24,",",B24,",",C24,"]") -> [255,190,0] | E24: =C24+B24*256+A24*256*256 -> 16760320 | F24: 0.903 | G24: 0.8727 | H24: 0.9682 | J24: 0.304 | K24: 0 | L24: 0.9536
A25: 255 | B25: 126 | C25: 0 | D25: =_xlfn.CONCAT("[",A25,",",B25,",",C25,"]") -> [255,126,0] | E25: =C25+B25*256+A25*256*256 -> 16743936 | F25: 0.8727 | G25: 0.8967 | H25: 0.9677 | J25: 0 | K25: 0.2389 | L25: 0.9506
A26: 255 | B26: 63 | C26: 0 | D26: =_xlfn.CONCAT("[",A26,",",B26,",",C26,"]") -> [255,63,0] | E26: =C26+B26*256+A26*256*256 -> 16727808 | F26: 0.8727 | G26: 0.9404 | H26: 0.9682 | J26: 0 | K26: 0.6758 | L26: 0.9539
A29: Ring 2 | F29: 0.01 | J29: 1
A30: R | B30: G | C30: B | D30: RGB | E30: RGB idx | F30: Rdc | G30: Gdc | H30: Bdc | J30: Rdc | K30: Gdc | L30: Bdc
A31: 255 | B31: 35 | C31: 39 | D31: =_xlfn.CONCAT("[",A31,",",B31,",",C31,"]") -> [255,35,39] | E31: =C31+B31*256+A31*256*256 -> 16720679 | F31: 0.8727 | G31: 0.9499 | H31: 0.966 | J31: 0 | K31: 0.7714 | L31: 0.9337
A32: 255 | B32: 35 | C32: 90 | D32: =_xlfn.CONCAT("[",A32,",",B32,",",C32,"]") -> [255,35,90] | E32: =C32+B32*256+A32*256*256 -> 16720730 | F32: 0.8727 | G32: 0.9496 | H32: 0.958 | J32: 0 | K32: 0.7683 | L32: 0.8512
A33: 255 | B33: 35 | C33: 145 | D33: =_xlfn.CONCAT("[",A33,",",B33,",",C33,"]") -> [255,35,145] | E33: =C33+B33*256+A33*256*256 -> 16720785 | F33: 0.8727 | G33: 0.949 | H33: 0.9396 | J33: 0 | K33: 0.7612 | L33: 0.6689
A34: 255 | B34: 35 | C34: 200 | D34: =_xlfn.CONCAT("[",A34,",",B34,",",C34,"]") -> [255,35,200] | E34: =C34+B34*256+A34*256*256 -> 16720840 | F34: 0.8727 | G34: 0.9477 | H34: 0.9099 | J34: 0 | K34: 0.7497 | L34: 0.3717
A35: 255 | B35: 35 | C35: 255 | D35: =_xlfn.CONCAT("[",A35,",",B35,",",C35,"]") -> [255,35,255] | E35: =C35+B35*256+A35*256*256 -> 16720895 | F35: 0.878 | G35: 0.9472 | H35: 0.8728 | J35: 0.0518 | K35: 0.7458 | L35: 0
A36: 200 | B36: 35 | C36: 255 | D36: =_xlfn.CONCAT("[",A36,",",B36,",",C36,"]") -> [200,35,255] | E36: =C36+B36*256+A36*256*256 -> 13116415 | F36: 0.916 | G36: 0.953 | H36: 0.8727 | J36: 0.4332 | K36: 0.8032 | L36: 0
A37: 145 | B37: 35 | C37: 255 | D37: =_xlfn.CONCAT("[",A37,",",B37,",",C37,"]") -> [145,35,255] | E37: =C37+B37*256+A37*256*256 -> 9511935 | F37: 0.943 | G37: 0.957 | H37: 0.8727 | J37: 0.7023 | K37: 0.8435 | L37: 0
A38: 90 | B38: 35 | C38: 255 | D38: =_xlfn.CONCAT("[",A38,",",B38,",",C38,"]") -> [90,35,255] | E38: =C38+B38*256+A38*256*256 -> 5907455 | F38: 0.9596 | G38: 0.9597 | H38: 0.8727 | J38: 0.8686 | K38: 0.8686 | L38: 0
A39: 39 | B39: 35 | C39: 255 | D39: =_xlfn.CONCAT("[",A39,",",B39,",",C39,"]") -> [39,35,255] | E39: =C39+B39*256+A39*256*256 -> 2565119 | F39: 0.9675 | G39: 0.961 | H39: 0.8727 | J39: 0.9475 | K39: 0.8803 | L39: 0
A40: 35 | B40: 90 | C40: 255 | D40: =_xlfn.CONCAT("[",A40,",",B40,",",C40,"]") -> [35,90,255] | E40: =C40+B40*256+A40*256*256 -> 2317055 | F40: 0.9639 | G40: 0.9357 | H40: 0.8727 | J40: 0.9104 | K40: 0.6289 | L40: 0
A41: 35 | B41: 145 | C41: 255 | D41: =_xlfn.CONCAT("[",A42,",",B41,",",C41,"]") -> [35,145,255] | E41: =C41+B41*256+A41*256*256 -> 2331135 | F41: 0.956 | G41: 0.8828 | H41: 0.8727 | J41: 0.8322 | K41: 0.1003 | L41: 0
A42: 35 | B42: 200 | C42: 255 | D42: =_xlfn.CONCAT("[",A42,",",B42,",",C42,"]") -> [35,200,255] | E42: =C42+B42*256+A42*256*256 -> 2345215 | F42: 0.9547 | G42: 0.8727 | H42: 0.915 | J42: 0.8212 | K42: 0 | L42: 0.4226
A43: 35 | B43: 255 | C43: 255 | D43: =_xlfn.CONCAT("[",A43,",",B43,",",C43,"]") -> [35,255,255] | E43: =C43+B43*256+A43*256*256 -> 2359295 | F43: 0.9551 | G43: 0.8727 | H43: 0.9375 | J43: 0.8235 | K43: 0 | L43: 0.6469
A44: 35 | B44: 255 | C44: 200 | D44: =_xlfn.CONCAT("[",A44,",",B44,",",C44,"]") -> [35,255,200] | E44: =C44+B44*256+A44*256*256 -> 2359240 | F44: 0.955 | G44: 0.8727 | H44: 0.9506 | J44: 0.8225 | K44: 0 | L44: 0.7788
A45: 35 | B45: 255 | C45: 145 | D45: =_xlfn.CONCAT("[",A45,",",B45,",",C45,"]") -> [35,255,145] | E45: =C45+B45*256+A45*256*256 -> 2359185 | F45: 0.955 | G45: 0.8727 | H45: 0.96 | J45: 0.8217 | K45: 0 | L45: 0.8712
A46: 35 | B46: 255 | C46: 90 | D46: =_xlfn.CONCAT("[",A46,",",B46,",",C46,"]") -> [35,255,90] | E46: =C46+B46*256+A46*256*256 -> 2359130 | F46: 0.9547 | G46: 0.8727 | H46: 0.9655 | J46: 0.8215 | K46: 0 | L46: 0.9284
A47: 35 | B47: 255 | C47: 35 | D47: =_xlfn.CONCAT("[",A47,",",B47,",",C47,"]") -> [35,255,35] | E47: =C47+B47*256+A47*256*256 -> 2359075 | F47: 0.9547 | G47: 0.8727 | H47: 0.9682 | J47: 0.8212 | K47: 0 | L47: 0.9555
A48: 90 | B48: 255 | C48: 35 | D48: =_xlfn.CONCAT("[",A48,",",B48,",",C48,"]") -> [90,255,35] | E48: =C48+B48*256+A48*256*256 -> 5963555 | F48: 0.9524 | G48: 0.8727 | H48: 0.9682 | J48: 0.7961 | K48: 0 | L48: 0.9552
A49: 145 | B49: 255 | C49: 35 | D49: =_xlfn.CONCAT("[",A49,",",B49,",",C49,"]") -> [145,255,35] | E49: =C49+B49*256+A49*256*256 -> 9568035 | F49: 0.947 | G49: 0.8727 | H49: 0.9682 | J49: 0.7433 | K49: 0 | L49: 0.9546
A50: 200 | B50: 255 | C50: 35 | D50: =_xlfn.CONCAT("[",A50,",",B50,",",C50,"]") -> [200,255,35] | E50: =C50+B50*256+A50*256*256 -> 13172515 | F50: 0.9386 | G50: 0.8727 | H50: 0.968 | J50: 0.6593 | K50: 0 | L50: 0.9534
A51: 255 | B51: 255 | C51: 35 | D51: =_xlfn.CONCAT("[",A51,",",B51,",",C51,"]") -> [255,255,35] | E51: =C51+B51*256+A51*256*256 -> 16776995 | F51: 0.927 | G51: 0.8727 | H51: 0.968 | J51: 0.5429 | K51: 0 | L51: 0.9519
A52: 255 | B52: 200 | C52: 35 | D52: =_xlfn.CONCAT("[",A52,",",B52,",",C52,"]") -> [255,200,35] | E52: =C52+B52*256+A52*256*256 -> 16762915 | F52: 0.9079 | G52: 0.8727 | H52: 0.9672 | J52: 0.3515 | K52: 0 | L52: 0.9455
A53: 255 | B53: 145 | C53: 35 | D53: =_xlfn.CONCAT("[",A53,",",B53,",",C53,"]") -> [255,145,35] | E53: =C53+B53*256+A53*256*256 -> 16748835 | F53: 0.8727 | G53: 0.8793 | H53: 0.9662 | J53: 0 | K53: 0.0664 | L53: 0.9345
A54: 255 | B54: 90 | C54: 35 | D54: =_xlfn.CONCAT("[",A54,",",B54,",",C54,"]") -> [255,90,35] | E54: =C54+B54*256+A54*256*256 -> 16734755 | F54: 0.8727 | G54: 0.9255 | H54: 0.9665 | J54: 0 | K54: 0.5268 | L54: 0.9365
A57: Ring 3 | F57: 0.01 | J57: 1
A58: R | B58: G | C58: B | D58: RGB | E58: RGB idx | F58: Rdc | G58: Gdc | H58: Bdc | J58: Rdc | K58: Gdc | L58: Bdc
A59: 255 | B59: 73 | C59: 76 | D59: =_xlfn.CONCAT("[",A59,",",B59,",",C59,"]") -> [255,73,76] | E59: =C59+B59*256+A59*256*256 -> 16730444 | F59: 0.8727 | G59: 0.9352 | H59: 0.9609 | J59: 0 | K59: 0.6244 | L59: 0.8822
A60: 255 | B60: 73 | C60: 119 | D60: =_xlfn.CONCAT("[",A60,",",B60,",",C60,"]") -> [255,73,119] | E60: =C60+B60*256+A60*256*256 -> 16730487 | F60: 0.8727 | G60: 0.9347 | H60: 0.9499 | J60: 0 | K60: 0.6202 | L60: 0.7717
A61: 255 | B61: 73 | C61: 164 | D61: =_xlfn.CONCAT("[",A61,",",B61,",",C61,"]") -> [255,73,164] | E61: =C61+B61*256+A61*256*256 -> 16730532 | F61: 0.8727 | G61: 0.934 | H61: 0.9316 | J61: 0 | K61: 0.613 | L61: 0.5876
A62: 255 | B62: 73 | C62: 209 | D62: =_xlfn.CONCAT("[",A62,",",B62,",",C62,"]") -> [255,73,209] | E62: =C62+B62*256+A62*256*256 -> 16730577 | F62: 0.8727 | G62: 0.9331 | H62: 0.9052 | J62: 0 | K62: 0.6027 | L62: 0.3248
A63: 255 | B63: 73 | C63: 255 | D63: =_xlfn.CONCAT("[",A63,",",B63,",",C63,"]") -> [255,73,255] | E63: =C63+B63*256+A63*256*256 -> 16730623 | F63: 0.876 | G63: 0.9329 | H63: 0.8727 | J63: 0.0314 | K63: 0.6013 | L63: 0
A64: 209 | B64: 73 | C64: 255 | D64: =_xlfn.CONCAT("[",A64,",",B64,",",C64,"]") -> [209,73,255] | E64: =C64+B64*256+A64*256*256 -> 13715967 | F64: 0.9086 | G64: 0.9377 | H64: 0.8727 | J64: 0.5381 | K64: 0.6496 | L64: 0
A65: 164 | B65: 73 | C65: 255 | D65: =_xlfn.CONCAT("[",A65,",",B65,",",C65,"]") -> [164,73,255] | E65: =C65+B65*256+A65*256*256 -> 10766847 | F65: 0.9329 | G65: 0.9414 | H65: 0.8727 | J65: 0.6005 | K65: 0.6855 | L65: 0
A66: 119 | B66: 73 | C66: 255 | D66: =_xlfn.CONCAT("[",A66,",",B66,",",C66,"]") -> [119,73,255] | E66: =C66+B66*256+A66*256*256 -> 7817727 | F66: 0.9499 | G66: 0.9439 | H66: 0.8727 | J66: 0.7714 | K66: 0.7107 | L66: 0
A67: 73 | B67: 73 | C67: 255 | D67: =_xlfn.CONCAT("[",A67,",",B67,",",C67,"]") -> [73,73,255] | E67: =C67+B67*256+A67*256*256 -> 4803071 | F67: 0.9606 | G67: 0.9455 | H67: 0.8727 | J67: 0.8798 | K67: 0.7268 | L67: 0
A68: 73 | B68: 119 | C68: 255 | D68: =_xlfn.CONCAT("[",A68,",",B68,",",C68,"]") -> [73,119,255] | E68: =C68+B68*256+A68*256*256 -> 4814847 | F68: 0.9557 | G68: 0.9109 | H68: 0.8727 | J68: 0.8291 | K68: 0.3813 | L68: 0
A69: 73 | B69: 164 | C69: 255 | D69: =_xlfn.CONCAT("[",A69,",",B69,",",C69,"]") -> [73,164,255] | E69: =C69+B69*256+A69*256*256 -> 4826367 | F69: 0.9509 | G69: 0.8727 | H69: 0.8866 | J69: 0.7804 | K69: 0 | L69: 0.1383
A70: 73 | B70: 209 | C70: 255 | D70: =_xlfn.CONCAT("[",A70,",",B70,",",C70,"]") -> [73,209,255] | E70: =C70+B70*256+A70*256*256 -> 4837887 | F70: 0.9526 | G70: 0.8727 | H70: 0.9201 | J70: 0.799 | K70: 0 | L70: 0.4736
A71: 73 | B71: 255 | C71: 255 | D71: =_xlfn.CONCAT("[",A71,",",B71,",",C71,"]") -> [73,255,255] | E71: =C71+B71*256+A71*256*256 -> 4849663 | F71: 0.9536 | G71: 0.8727 | H71: 0.9375 | J71: 0.8088 | K71: 0 | L71: 0.6474
A72: 73 | B72: 255 | C72: 209 | D72: =_xlfn.CONCAT("[",A73,",",B72,",",C72,"]") -> [73,255,209] | E72: =C72+B72*256+A72*256*256 -> 4849617 | F72: 0.9536 | G72: 0.8727 | H72: 0.9487 | J72: 0.8081 | K72: 0 | L72: 0.7602
A73: 73 | B73: 255 | C73: 164 | D73: =_xlfn.CONCAT("[",A73,",",B73,",",C73,"]") -> [73,255,164] | E73: =C73+B73*256+A73*256*256 -> 4849572 | F73: 0.9536 | G73: 0.8727 | H73: 0.957 | J73: 0.8073 | K73: 0 | L73: 0.8435
A74: 73 | B74: 255 | C74: 119 | D74: =_xlfn.CONCAT("[",A74,",",B74,",",C74,"]") -> [73,255,119] | E74: =C74+B74*256+A74*256*256 -> 4849527 | F74: 0.9534 | G74: 0.8727 | H74: 0.9631 | J74: 0.8068 | K74: 0 | L74: 0.9024
A75: 73 | B75: 255 | C75: 73 | D75: =_xlfn.CONCAT("[",A75,",",B75,",",C75,"]") -> [73,255,73] | E75: =C75+B75*256+A75*256*256 -> 4849481 | F75: 0.9534 | G75: 0.8727 | H75: 0.9667 | J75: 0.8066 | K75: 0 | L75: 0.9396
A76: 119 | B76: 255 | C76: 73 | D76: =_xlfn.CONCAT("[",A76,",",B76,",",C76,"]") -> [119,255,73] | E76: =C76+B76*256+A76*256*256 -> 7864137 | F76: 0.9499 | G76: 0.8727 | H76: 0.9667 | J76: 0.7722 | K76: 0 | L76: 0.9391
A77: 164 | B77: 255 | C77: 73 | D77: =_xlfn.CONCAT("[",A77,",",B77,",",C77,"]") -> [164,255,73] | E77: =C77+B77*256+A77*256*256 -> 10813257 | F77: 0.9445 | G77: 0.8727 | H77: 0.9665 | J77: 0.7182 | K77: 0 | L77: 0.9386
A78: 209 | B78: 255 | C78: 73 | D78: =_xlfn.CONCAT("[",A78,",",B78,",",C78,"]") -> [209,255,73] | E78: =C78+B78*256+A78*256*256 -> 13762377 | F78: 0.937 | G78: 0.8727 | H78: 0.9665 | J78: 0.6428 | K78: 0 | L78: 0.9377
A79: 255 | B79: 255 | C79: 73 | D79: =_xlfn.CONCAT("[",A79,",",B79,",",C79,"]") -> [255,255,73] | E79: =C79+B79*256+A79*256*256 -> 16777033 | F79: 0.927 | G79: 0.8727 | H79: 0.9665 | J79: 0.5431 | K79: 0 | L79: 0.9367
A80: 255 | B80: 209 | C80: 73 | D80: =_xlfn.CONCAT("[",A80,",",B80,",",C80,"]") -> [255,209,73] | E80: =C80+B80*256+A80*256*256 -> 16765257 | F80: 0.9121 | G80: 0.8727 | H80: 0.965 | J80: 0.3936 | K80: 0 | L80: 0.9237
A81: 255 | B81: 164 | C81: 73 | D81: =_xlfn.CONCAT("[",A81,",",B81,",",C81,"]") -> [255,164,73] | E81: =C81+B81*256+A81*256*256 -> 16753737 | F81: 0.8847 | G81: 0.8727 | H81: 0.9629 | J81: 0.1189 | K81: 0 | L81: 0.9004
A82: 255 | B82: 119 | C82: 73 | D82: =_xlfn.CONCAT("[",A82,",",B82,",",C82,"]") -> [255,119,73] | E82: =C82+B82*256+A82*256*256 -> 16742217 | F82: 0.8727 | G82: 0.9035 | H82: 0.9616 | J82: 0 | K82: 0.3068 | L82: 0.8888
A85: Ring 4 | F85: 0.01 | J85: 1
A86: R | B86: G | C86: B | D86: RGB | E86: RGB idx | F86: Rdc | G86: Gdc | H86: Bdc | J86: Rdc | K86: Gdc | L86: Bdc
A87: 255 | B87: 109 | C87: 112 | D87: =_xlfn.CONCAT("[",A87,",",B87,",",C87,"]") -> [255,109,112] | E87: =C87+B87*256+A87*256*256 -> 16739696 | F87: 0.8727 | G87: 0.9114 | H87: 0.9526 | J87: 0 | K87: 0.385 | L87: 0.7983
A88: 255 | B88: 109 | C88: 145 | D88: =_xlfn.CONCAT("[",A88,",",B88,",",C88,"]") -> [255,109,145] | E88: =C88+B88*256+A88*256*256 -> 16739729 | F88: 0.8727 | G88: 0.9109 | H88: 0.9411 | J88: 0 | K88: 0.3805 | L88: 0.6833
A89: 255 | B89: 109 | C89: 182 | D89: =_xlfn.CONCAT("[",A89,",",B89,",",C89,"]") -> [255,109,182] | E89: =C89+B89*256+A89*256*256 -> 16739766 | F89: 0.8727 | G89: 0.9101 | H89: 0.9236 | J89: 0 | K89: 0.3737 | L89: 0.5083
A90: 255 | B90: 109 | C90: 218 | D90: =_xlfn.CONCAT("[",A90,",",B90,",",C90,"]") -> [255,109,218] | E90: =C90+B90*256+A90*256*256 -> 16739802 | F90: 0.8727 | G90: 0.9094 | H90: 0.9016 | J90: 0 | K90: 0.3652 | L90: 0.2871
A91: 255 | B91: 109 | C91: 255 | D91: =_xlfn.CONCAT("[",A91,",",B91,",",C91,"]") -> [255,109,255] | E91: =C91+B91*256+A91*256*256 -> 16739839 | F91: 0.8727 | G91: 0.9081 | H91: 0.873 | J91: 0 | K91: 0.354 | L91: 0.0034
A92: 218 | B92: 109 | C92: 255 | D92: =_xlfn.CONCAT("[",A92,",",B92,",",C92,"]") -> [218,109,255] | E92: =C92+B92*256+A92*256*256 -> 14315007 | F92: 0.8991 | G92: 0.9119 | H92: 0.8727 | J92: 0.2651 | K92: 0.3906 | L92: 0
A93: 182 | B93: 109 | C93: 255 | D93: =_xlfn.CONCAT("[",A93,",",B93,",",C93,"]") -> [182,109,255] | E93: =C93+B93*256+A93*256*256 -> 11955711 | F93: 0.9204 | G93: 0.9147 | H93: 0.8727 | J93: 0.476 | K93: 0.4209 | L93: 0
A94: 145 | B94: 109 | C94: 255 | D94: =_xlfn.CONCAT("[",A94,",",B94,",",C94,"]") -> [145,109,255] | E94: =C94+B94*256+A94*256*256 -> 9530879 | F94: 0.9372 | G94: 0.9171 | H94: 0.8727 | J94: 0.6443 | K94: 0.445 | L94: 0
A95: 109 | B95: 109 | C95: 255 | D95: =_xlfn.CONCAT("[",A95,",",B95,",",C95,"]") -> [109,109,255] | E95: =C95+B95*256+A95*256*256 -> 7171583 | F95: 0.9491 | G95: 0.919 | H95: 0.8727 | J95: 0.7633 | K95: 0.4624 | L95: 0
A96: 109 | B96: 145 | C96: 255 | D96: =_xlfn.CONCAT("[",A96,",",B96,",",C96,"]") -> [109,145,255] | E96: =C96+B96*256+A96*256*256 -> 7180799 | F96: 0.9435 | G96: 0.881 | H96: 0.8727 | J96: 0.7077 | K96: 0.0083 | L96: 0
A97: 109 | B97: 182 | C97: 255 | D97: =_xlfn.CONCAT("[",A98,",",B97,",",C97,"]") -> [109,182,255] | E97: =C97+B97*256+A97*256*256 -> 7190271 | F97: 0.9465 | G97: 0.7827 | H97: 0.9035 | J97: 0.7373 | K97: 0 | L97: 0.3073
A98: 109 | B98: 218 | C98: 255 | D98: =_xlfn.CONCAT("[",A98,",",B98,",",C98,"]") -> [109,218,255] | E98: =C98+B98*256+A98*256*256 -> 7199487 | F98: 0.9494 | G98: 0.7827 | H98: 0.9245 | J98: 0.7661 | K98: 0 | L98: 0.5188
A99: 109 | B99: 255 | C99: 255 | D99: =_xlfn.CONCAT("[",A99,",",B99,",",C99,"]") -> [109,255,255] | E99: =C99+B99*256+A99*256*256 -> 7208959 | F99: 0.9512 | G99: 0.7827 | H99: 0.9376 | J99: 0.7837 | K99: 0 | L99: 0.6484
A100: 109 | B100: 255 | C100: 218 | D100: =_xlfn.CONCAT("[",A100,",",B100,",",C100,"]") -> [109,255,218] | E100: =C100+B100*256+A100*256*256 -> 7208922 | F100: 0.9511 | G100: 0.7827 | H100: 0.9467 | J100: 0.7829 | K100: 0 | L100: 0.7409
A101: 109 | B101: 255 | C101: 182 | D101: =_xlfn.CONCAT("[",A101,",",B101,",",C101,"]") -> [109,255,182] | E101: =C101+B101*256+A101*256*256 -> 7208886 | F101: 0.9509 | G101: 0.7827 | H101: 0.9541 | J101: 0.7824 | K101: 0 | L101: 0.8135
A102: 109 | B102: 255 | C102: 145 | D102: =_xlfn.CONCAT("[",A102,",",B102,",",C102,"]") -> [109,255,145] | E102: =C102+B102*256+A102*256*256 -> 7208849 | F102: 0.9509 | G102: 0.7827 | H102: 0.9599 | J102: 0.7819 | K102: 0 | L102: 0.7813
A103: 109 | B103: 255 | C103: 109 | D103: =_xlfn.CONCAT("[",A103,",",B103,",",C103,"]") -> [109,255,109] | E103: =C103+B103*256+A103*256*256 -> 7208813 | F103: 0.9509 | G103: 0.8727 | H103: 0.964 | J103: 0.7814 | K103: 0 | L103: 0.9121
A104: 145 | B104: 255 | C104: 109 | D104: =_xlfn.CONCAT("[",A104,",",B104,",",C104,"]") -> [145,255,109] | E104: =C104+B104*256+A104*256*256 -> 9568109 | F104: 0.9472 | G104: 0.8727 | H104: 0.9639 | J104: 0.7438 | K104: 0 | L104: 0.9119
A105: 182 | B105: 255 | C105: 109 | D105: =_xlfn.CONCAT("[",A105,",",B105,",",C105,"]") -> [182,255,109] | E105: =C105+B105*256+A105*256*256 -> 11992941 | F105: 0.9419 | G105: 0.8727 | H105: 0.9639 | J105: 0.6909 | K105: 0 | L105: 0.9116
A106: 218 | B106: 255 | C106: 109 | D106: =_xlfn.CONCAT("[",A106,",",B106,",",C106,"]") -> [218,255,109] | E106: =C106+B106*256+A106*256*256 -> 14352237 | F106: 0.9352 | G106: 0.8727 | H106: 0.9639 | J106: 0.6254 | K106: 0 | L106: 0.9111
A107: 255 | B107: 255 | C107: 109 | D107: =_xlfn.CONCAT("[",A107,",",B107,",",C107,"]") -> [255,255,109] | E107: =C107+B107*256+A107*256*256 -> 16777069 | F107: 0.9272 | G107: 0.8727 | H107: 0.9639 | J107: 0.6254 | K107: 0 | L107: 0.9111
A108: 255 | B108: 218 | C108: 109 | D108: =_xlfn.CONCAT("[",A108,",",B108,",",C108,"]") -> [255,218,109] | E108: =C108+B108*256+A108*256*256 -> 16767597 | F108: 0.916 | G108: 0.8727 | H108: 0.9619 | J108: 0.4311 | K108: 0 | L108: 0.8906
A109: 255 | B109: 182 | C109: 109 | D109: =_xlfn.CONCAT("[",A109,",",B109,",",C109,"]") -> [255,182,109] | E109: =C109+B109*256+A109*256*256 -> 16758381 | F109: 0.8979 | G109: 0.8727 | H109: 0.9587 | J109: 0.2526 | K109: 0 | L109: 0.8586
A110: 255 | B110: 145 | C110: 109 | D110: =_xlfn.CONCAT("[",A110,",",B110,",",C110,"]") -> [255,145,109] | E110: =C110+B110*256+A110*256*256 -> 16748909 | F110: 0.8727 | G110: 0.8788 | H110: 0.9541 | J110: 0 | K110: 0.0615 | L110: 0.8125
A113: Ring 5 | F113: 0.01 | J113: 1
A114: R | B114: G | C114: B | D114: RGB | E114: RGB idx | F114: Rdc | G114: Gdc | H114: Bdc | J114: Rdc | K114: Gdc | L114: Bdc
A115: 255 | B115: 145 | C115: 147 | D115: =_xlfn.CONCAT("[",A115,",",B115,",",C115,"]") -> [255,145,147] | E115: =C115+B115*256+A115*256*256 -> 16748947 | F115: 0.8727 | G115: 0.8783 | H115: 0.9416 | J115: 0 | K115: 0.0566 | L115: 0.6879
A116: 255 | B116: 145 | C116: 172 | D116: =_xlfn.CONCAT("[",A116,",",B116,",",C116,"]") -> [255,145,172] | E116: =C116+B116*256+A116*256*256 -> 16748972 | F116: 0.8727 | G116: 0.8778 | H116: 0.9306 | J116: 0 | K116: 0.0523 | L116: 0.5798
A117: 255 | B117: 145 | C117: 200 | D117: =_xlfn.CONCAT("[",A117,",",B117,",",C117,"]") -> [255,145,200] | E117: =C117+B117*256+A117*256*256 -> 16749000 | F117: 0.8727 | G117: 0.8775 | H117: 0.916 | J117: 0 | K117: 0.0465 | L117: 0.4316
A118: 255 | B118: 145 | C118: 227 | D118: =_xlfn.CONCAT("[",A118,",",B118,",",C118,"]") -> [255,145,227] | E118: =C118+B118*256+A118*256*256 -> 16749027 | F118: 0.8727 | G118: 0.8766 | H118: 0.899 | J118: 0 | K118: 0.0398 | L118: 0.2607
A119: 255 | B119: 145 | C119: 255 | D119: =_xlfn.CONCAT("[",A119,",",B119,",",C119,"]") -> [255,145,255] | E119: =C119+B119*256+A119*256*256 -> 16749055 | F119: 0.8727 | G119: 0.876 | H119: 0.8781 | J119: 0 | K119: 0.0316 | L119: 0.0528
A120: 227 | B120: 145 | C120: 255 | D120: =_xlfn.CONCAT("[",A120,",",B120,",",C120,"]") -> [227,145,255] | E120: =C120+B120*256+A120*256*256 -> 14914047 | F120: 0.8878 | G120: 0.8735 | H120: 0.8727 | J120: 0.1513 | K120: 0.0064 | L120: 0
A121: 200 | B121: 145 | C121: 255 | D121: =_xlfn.CONCAT("[",A121,",",B121,",",C121,"]") -> [200,145,255] | E121: =C121+B121*256+A121*256*256 -> 13144575 | F121: 0.905 | G121: 0.8757 | H121: 0.8727 | J121: 0.3227 | K121: 0.0003 | L121: 0
A122: 172 | B122: 145 | C122: 255 | D122: =_xlfn.CONCAT("[",A122,",",B122,",",C122,"]") -> [172,145,255] | E122: =C122+B122*256+A122*256*256 -> 11309567 | F122: 0.9199 | G122: 0.8778 | H122: 0.8727 | J122: 0.4716 | K122: 0.0505 | L122: 0
A123: 145 | B123: 145 | C123: 255 | D123: =_xlfn.CONCAT("[",A123,",",B123,",",C123,"]") -> [145,145,255] | E123: =C123+B123*256+A123*256*256 -> 9540095 | F123: 0.9316 | G123: 0.8793 | H123: 0.8727 | J123: 0.589 | K123: 0.0666 | L123: 0
A124: 145 | B124: 172 | C124: 255 | D124: =_xlfn.CONCAT("[",A124,",",B124,",",C124,"]") -> [145,172,255] | E124: =C124+B124*256+A124*256*256 -> 9547007 | F124: 0.9367 | G124: 0.8727 | H124: 0.896 | J124: 0.6393 | K124: 0 | L124: 0.2328
A125: 145 | B125: 200 | C125: 255 | D125: =_xlfn.CONCAT("[",A125,",",B125,",",C125,"]") -> [145,200,255] | E125: =C125+B125*256+A125*256*256 -> 9554175 | F125: 0.9419 | G125: 0.8727 | H125: 0.916 | J125: 0.6904 | K125: 0 | L125: 0.4319
A126: 145 | B126: 227 | C126: 255 | D126: =_xlfn.CONCAT("[",A126,",",B126,",",C126,"]") -> [145,227,255] | E126: =C126+B126*256+A126*256*256 -> 9561087 | F126: 0.945 | G126: 0.8727 | H126: 0.9286 | J126: 0.7228 | K126: 0 | L126: 0.5588
A127: 145 | B127: 255 | C127: 255 | D127: =_xlfn.CONCAT("[",A127,",",B127,",",C127,"]") -> [145,255,255] | E127: =C127+B127*256+A127*256*256 -> 9568255 | F127: 0.9475 | G127: 0.8727 | H127: 0.9377 | J127: 0.7463 | K127: 0 | L127: 0.6498
A128: 145 | B128: 255 | C128: 227 | D128: =_xlfn.CONCAT("[",A129,",",B128,",",C128,"]") -> [145,255,227] | E128: =C128+B128*256+A128*256*256 -> 9568227 | F128: 0.9472 | G128: 0.8727 | H128: 0.9447 | J128: 0.7456 | K128: 0 | L128: 0.7208
A129: 145 | B129: 255 | C129: 200 | D129: =_xlfn.CONCAT("[",A129,",",B129,",",C129,"]") -> [145,255,200] | E129: =C129+B129*256+A129*256*256 -> 9568200 | F129: 0.9472 | G129: 0.8727 | H129: 0.9506 | J129: 0.7451 | K129: 0 | L129: 0.7798
A130: 145 | B130: 255 | C130: 172 | D130: =_xlfn.CONCAT("[",A130,",",B130,",",C130,"]") -> [145,255,172] | E130: =C130+B130*256+A130*256*256 -> 9568172 | F130: 0.9472 | G130: 0.8727 | H130: 0.9557 | J130: 0.7446 | K130: 0 | L130: 0.8311
A131: 145 | B131: 255 | C131: 145 | D131: =_xlfn.CONCAT("[",A131,",",B131,",",C131,"]") -> [145,255,145] | E131: =C131+B131*256+A131*256*256 -> 9568145 | F131: 0.9472 | G131: 0.8727 | H131: 0.96 | J131: 0.7442 | K131: 0 | L131: 0.8713
A132: 172 | B132: 255 | C132: 145 | D132: =_xlfn.CONCAT("[",A132,",",B132,",",C132,"]") -> [172,255,145] | E132: =C132+B132*256+A132*256*256 -> 11337617 | F132: 0.9435 | G132: 0.8727 | H132: 0.96 | J132: 0.7071 | K132: 0 | L132: 0.8712
A133: 200 | B133: 255 | C133: 145 | D133: =_xlfn.CONCAT("[",A133,",",B133,",",C133,"]") -> [200,255,145] | E133: =C133+B133*256+A133*256*256 -> 13172625 | F133: 0.9387 | G133: 0.8727 | H133: 0.96 | J133: 0.6603 | K133: 0 | L133: 0.8712
A134: 227 | B134: 255 | C134: 145 | D134: =_xlfn.CONCAT("[",A134,",",B134,",",C134,"]") -> [227,255,145] | E134: =C134+B134*256+A134*256*256 -> 14942097 | F134: 0.9336 | G134: 0.8727 | H134: 0.96 | J134: 0.6074 | K134: 0 | L134: 0.8713
A135: 255 | B135: 255 | C135: 145 | D135: =_xlfn.CONCAT("[",A135,",",B135,",",C135,"]") -> [255,255,145] | E135: =C135+B135*256+A135*256*256 -> 16777105 | F135: 0.9272 | G135: 0.8727 | H135: 0.96 | J135: 0.5444 | K135: 0 | L135: 0.8712
A136: 255 | B136: 227 | C136: 145 | D136: =_xlfn.CONCAT("[",A136,",",B136,",",C136,"]") -> [255,227,145] | E136: =C136+B136*256+A136*256*256 -> 16769937 | F136: 0.9191 | G136: 0.8727 | H136: 0.9572 | J136: 0.4646 | K136: 0 | L136: 0.846
A137: 255 | B137: 200 | C137: 145 | D137: =_xlfn.CONCAT("[",A137,",",B137,",",C137,"]") -> [255,200,145] | E137: =C137+B137*256+A137*256*256 -> 16763025 | F137: 0.9081 | G137: 0.8727 | H137: 0.9539 | J137: 0.355 | K137: 0 | L137: 0.811
A138: 255 | B138: 172 | C138: 145 | D138: =_xlfn.CONCAT("[",A138,",",B138,",",C138,"]") -> [255,172,145] | E138: =C138+B138*256+A138*256*256 -> 16755857 | F138: 0.8916 | G138: 0.8727 | H138: 0.9484 | J138: 0.1869 | K138: 0 | L138: 0.7575
A141: Ring 6 | J141: 1
A142: R | B142: G | C142: B | D142: RGB | E142: RGB idx | F142: Rdc | G142: Gdc | H142: Bdc | J142: Rdc | K142: Gdc | L142: Bdc
A143: 255 | B143: 181 | C143: 182 | D143: =_xlfn.CONCAT("[",A143,",",B143,",",C143,"]") -> [255,181,182] | E143: =C143+B143*256+A143*256*256 -> 16758198 | F143: 0.898 | G143: 0.8727 | H143: 0.9391 | J143: 0.5784 | K143: 0.4409 | L143: 0.803
A144: 255 | B144: 181 | C144: 199 | D144: =_xlfn.CONCAT("[",A144,",",B144,",",C144,"]") -> [255,181,199] | E144: =C144+B144*256+A144*256*256 -> 16758215 | F144: 0.8981 | G144: 0.8727 | H144: 0.9329 | J144: 0.5793 | K144: 0.4409 | L144: 0.7687
A145: 255 | B145: 181 | C145: 218 | D145: =_xlfn.CONCAT("[",A145,",",B145,",",C145,"]") -> [255,181,218] | E145: =C145+B145*256+A145*256*256 -> 16758234 | F145: 0.8985 | G145: 0.8727 | H145: 0.925 | J145: 0.5805 | K145: 0.4409 | L145: 0.7258
A146: 255 | B146: 181 | C146: 236 | D146: =_xlfn.CONCAT("[",A146,",",B146,",",C146,"]") -> [255,181,236] | E146: =C146+B146*256+A146*256*256 -> 16758252 | F146: 0.8986 | G146: 0.8727 | H146: 0.9166 | J146: 0.582 | K146: 0.4409 | L146: 0.6807
A147: 255 | B147: 181 | C147: 255 | D147: =_xlfn.CONCAT("[",A147,",",B147,",",C147,"]") -> [255,181,255] | E147: =C147+B147*256+A147*256*256 -> 16758271 | F147: 0.8988 | G147: 0.8727 | H147: 0.9072 | J147: 0.5834 | K147: 0.4409 | L147: 0.6282
A148: 236 | B148: 181 | C148: 255 | D148: =_xlfn.CONCAT("[",A148,",",B148,",",C148,"]") -> [236,181,255] | E148: =C148+B148*256+A148*256*256 -> 15513087 | F148: 0.9074 | G148: 0.8727 | H148: 0.9062 | J148: 0.6296 | K148: 0.4409 | L148: 0.624
A149: 218 | B149: 181 | C149: 255 | D149: =_xlfn.CONCAT("[",A149,",",B149,",",C149,"]") -> [218,181,255] | E149: =C149+B149*256+A149*256*256 -> 14333439 | F149: 0.9147 | G149: 0.8727 | H149: 0.9057 | J149: 0.67 | K149: 0.4409 | L149: 0.62
A150: 199 | B150: 181 | C150: 255 | D150: =_xlfn.CONCAT("[",A150,",",B150,",",C150,"]") -> [199,181,255] | E150: =C150+B150*256+A150*256*256 -> 13088255 | F150: 0.9221 | G150: 0.8727 | H150: 0.905 | J150: 0.7094 | K150: 0.4409 | L150: 0.6164
A151: 181 | B151: 181 | C151: 255 | D151: =_xlfn.CONCAT("[",A151,",",B151,",",C151,"]") -> [181,181,255] | E151: =C151+B151*256+A151*256*256 -> 11908607 | F151: 0.9282 | G151: 0.8727 | H151: 0.9045 | J151: 0.7431 | K151: 0.4409 | L151: 0.6135
A152: 181 | B152: 199 | C152: 255 | D152: =_xlfn.CONCAT("[",A152,",",B152,",",C152,"]") -> [181,199,255] | E152: =C152+B152*256+A152*256*256 -> 11913215 | F152: 0.9331 | G152: 0.8727 | H152: 0.916 | J152: 0.7697 | K152: 0.4409 | L152: 0.6767
A153: 181 | B153: 218 | C153: 255 | D153: =_xlfn.CONCAT("[",A153,",",B153,",",C153,"]") -> [181,218,255] | E153: =C153+B153*256+A153*256*256 -> 11918079 | F153: 0.937 | G153: 0.8727 | H153: 0.9252 | J153: 0.7912 | K153: 0.4409 | L153: 0.7274
A154: 181 | B154: 236 | C154: 255 | D154: =_xlfn.CONCAT("[",A154,",",B154,",",C154,"]") -> [181,236,255] | E154: =C154+B154*256+A154*256*256 -> 11922687 | F154: 0.9399 | G154: 0.8727 | H154: 0.9321 | J154: 0.8071 | K154: 0.4409 | L154: 0.7651
A155: 181 | B155: 255 | C155: 255 | D155: =_xlfn.CONCAT("[",A155,",",B155,",",C155,"]") -> [181,255,255] | E155: =C155+B155*256+A155*256*256 -> 11927551 | F155: 0.9424 | G155: 0.8727 | H155: 0.938 | J155: 0.8202 | K155: 0.4409 | L155: 0.7961
A156: 181 | B156: 255 | C156: 236 | D156: =_xlfn.CONCAT("[",A157,",",B156,",",C156,"]") -> [181,255,236] | E156: =C156+B156*256+A156*256*256 -> 11927532 | F156: 0.9424 | G156: 0.8727 | H156: 0.9429 | J156: 0.8197 | K156: 0.4409 | L156: 0.823
A157: 181 | B157: 255 | C157: 218 | D157: =_xlfn.CONCAT("[",A157,",",B157,",",C157,"]") -> [181,255,218] | E157: =C157+B157*256+A157*256*256 -> 11927514 | F157: 0.9421 | G157: 0.8727 | H157: 0.947 | J157: 0.8195 | K157: 0.4409 | L157: 0.8458
A158: 181 | B158: 255 | C158: 199 | D158: =_xlfn.CONCAT("[",A158,",",B158,",",C158,"]") -> [181,255,199] | E158: =C158+B158*256+A158*256*256 -> 11927495 | F158: 0.9421 | G158: 0.8727 | H158: 0.9509 | J158: 0.8193 | K158: 0.4409 | L158: 0.8676
A159: 181 | B159: 255 | C159: 181 | D159: =_xlfn.CONCAT("[",A159,",",B159,",",C159,"]") -> [181,255,181] | E159: =C159+B159*256+A159*256*256 -> 11927477 | F159: 0.9421 | G159: 0.8727 | H159: 0.9542 | J159: 0.8191 | K159: 0.4409 | L159: 0.8859
A160: 199 | B160: 255 | C160: 181 | D160: =_xlfn.CONCAT("[",A160,",",B160,",",C160,"]") -> [199,255,181] | E160: =C160+B160*256+A160*256*256 -> 13107125 | F160: 0.9391 | G160: 0.8727 | H160: 0.9542 | J160: 0.8025 | K160: 0.4409 | L160: 0.8859
A161: 218 | B161: 255 | C161: 181 | D161: =_xlfn.CONCAT("[",A161,",",B161,",",C161,"]") -> [218,255,181] | E161: =C161+B161*256+A161*256*256 -> 14352309 | F161: 0.9355 | G161: 0.8727 | H161: 0.9544 | J161: 0.7827 | K161: 0.4409 | L161: 0.8861
A162: 236 | B162: 255 | C162: 181 | D162: =_xlfn.CONCAT("[",A162,",",B162,",",C162,"]") -> [236,255,181] | E162: =C162+B162*256+A162*256*256 -> 15531957 | F162: 0.9316 | G162: 0.8727 | H162: 0.9545 | J162: 0.7618 | K162: 0.4409 | L162: 0.8863
A163: 255 | B163: 255 | C163: 181 | D163: =_xlfn.CONCAT("[",A163,",",B163,",",C163,"]") -> [255,255,181] | E163: =C163+B163*256+A163*256*256 -> 16777141 | F163: 0.9272 | G163: 0.8727 | H163: 0.9545 | J163: 0.7382 | K163: 0.4409 | L163: 0.8866
A164: 255 | B164: 236 | C164: 181 | D164: =_xlfn.CONCAT("[",A164,",",B164,",",C164,"]") -> [255,236,181] | E164: =C164+B164*256+A164*256*256 -> 16772277 | F164: 0.9221 | G164: 0.8727 | H164: 0.9519 | J164: 0.7104 | K164: 0.4409 | L164: 0.8725
A165: 255 | B165: 218 | C165: 181 | D165: =_xlfn.CONCAT("[",A165,",",B165,",",C165,"]") -> [255,218,181] | E165: =C165+B165*256+A165*256*256 -> 16767669 | F165: 0.9162 | G165: 0.8727 | H165: 0.9486 | J165: 0.6774 | K165: 0.4409 | L165: 0.8556
A166: 255 | B166: 199 | C166: 181 | D166: =_xlfn.CONCAT("[",A166,",",B166,",",C166,"]") -> [255,199,181] | E166: =C166+B166*256+A166*256*256 -> 16762805 | F166: 0.9079 | G166: 0.8727 | H166: 0.9445 | J166: 0.633 | K166: 0.4409 | L166: 0.8327
A169: Ring 7 | F169: 0.01 | J169: 1
A170: R | B170: G | C170: B | D170: RGB | E170: RGB idx | F170: Rdc | G170: Gdc | H170: Bdc | J170: Rdc | K170: Gdc | L170: Bdc
A171: 255 | B171: 219 | C171: 219 | D171: =_xlfn.CONCAT("[",A171,",",B171,",",C171,"]") -> [255,219,219] | E171: =C171+B171*256+A171*256*256 -> 16767963 | F171: 0.9167 | G171: 0.8727 | H171: 0.9389 | J171: 0.4399 | K171: 0 | L171: 0.6606
A172: 255 | B172: 219 | C172: 228 | D172: =_xlfn.CONCAT("[",A172,",",B172,",",C172,"]") -> [255,219,228] | E172: =C172+B172*256+A172*256*256 -> 16767972 | F172: 0.9167 | G172: 0.8727 | H172: 0.936 | J172: 0.4406 | K172: 0 | L172: 0.633
A173: 255 | B173: 219 | C173: 237 | D173: =_xlfn.CONCAT("[",A173,",",B173,",",C173,"]") -> [255,219,237] | E173: =C173+B173*256+A173*256*256 -> 16767981 | F173: 0.917 | G173: 0.8727 | H173: 0.9331 | J173: 0.4411 | K173: 0 | L173: 0.6039
A174: 255 | B174: 219 | C174: 246 | D174: =_xlfn.CONCAT("[",A174,",",B174,",",C174,"]") -> [255,219,246] | E174: =C174+B174*256+A174*256*256 -> 16767990 | F174: 0.917 | G174: 0.8727 | H174: 0.9301 | J174: 0.4419 | K174: 0 | L174: 0.5734
A175: 255 | B175: 219 | C175: 255 | D175: =_xlfn.CONCAT("[",A175,",",B175,",",C175,"]") -> [255,219,255] | E175: =C175+B175*256+A175*256*256 -> 16767999 | F175: 0.917 | G175: 0.8727 | H175: 0.927 | J175: 0.4426 | K175: 0 | L175: 0.5414
A176: 246 | B176: 219 | C176: 255 | D176: =_xlfn.CONCAT("[",A176,",",B176,",",C176,"]") -> [246,219,255] | E176: =C176+B176*256+A176*256*256 -> 16178175 | F176: 0.9199 | G176: 0.8727 | H176: 0.9267 | J176: 0.4711 | K176: 0 | L176: 0.53989
A177: 237 | B177: 219 | C177: 255 | D177: =_xlfn.CONCAT("[",A177,",",B177,",",C177,"]") -> [237,219,255] | E177: =C177+B177*256+A177*256*256 -> 15588351 | F177: 0.9226 | G177: 0.8727 | H177: 0.9265 | J177: 0.4985 | K177: 0 | L177: 0.5383
A178: 228 | B178: 219 | C178: 255 | D178: =_xlfn.CONCAT("[",A178,",",B178,",",C178,"]") -> [228,219,255] | E178: =C178+B178*256+A178*256*256 -> 14998527 | F178: 0.9252 | G178: 0.8727 | H178: 0.9265 | J178: 0.5249 | K178: 0 | L178: 0.5368
A179: 219 | B179: 219 | C179: 255 | D179: =_xlfn.CONCAT("[",A179,",",B179,",",C179,"]") -> [219,219,255] | E179: =C179+B179*256+A179*256*256 -> 14408703 | F179: 0.9277 | G179: 0.8727 | H179: 0.9263 | J179: 0.5503 | K179: 0 | L179: 0.5354
A180: 219 | B180: 228 | C180: 255 | D180: =_xlfn.CONCAT("[",A180,",",B180,",",C180,"]") -> [219,228,255] | E180: =C180+B180*256+A180*256*256 -> 14411007 | F180: 0.9301 | G180: 0.8727 | H180: 0.9299 | J180: 0.5729 | K180: 0 | L180: 0.5703
A181: 219 | B181: 237 | C181: 255 | D181: =_xlfn.CONCAT("[",A181,",",B181,",",C181,"]") -> [219,237,255] | E181: =C181+B181*256+A181*256*256 -> 14413311 | F181: 0.9321 | G181: 0.8727 | H181: 0.9329 | J181: 0.5929 | K181: 0 | L181: 0.6013
A182: 219 | B182: 246 | C182: 255 | D182: =_xlfn.CONCAT("[",A182,",",B182,",",C182,"]") -> [219,246,255] | E182: =C182+B182*256+A182*256*256 -> 14415615 | F182: 0.9339 | G182: 0.8727 | H182: 0.9357 | J182: 0.6111 | K182: 0 | L182: 0.6291
A183: 219 | B183: 255 | C183: 255 | D183: =_xlfn.CONCAT("[",A183,",",B183,",",C183,"]") -> [219,255,255] | E183: =C183+B183*256+A183*256*256 -> 14417919 | F183: 0.9355 | G183: 0.8727 | H183: 0.9381 | J183: 0.6272 | K183: 0 | L183: 0.654
A184: 219 | B184: 255 | C184: 246 | D184: =_xlfn.CONCAT("[",A185,",",B184,",",C184,"]") -> [219,255,246] | E184: =C184+B184*256+A184*256*256 -> 14417910 | F184: 0.9355 | G184: 0.8727 | H184: 0.9406 | J184: 0.6269 | K184: 0 | L184: 0.6777
A185: 219 | B185: 255 | C185: 237 | D185: =_xlfn.CONCAT("[",A185,",",B185,",",C185,"]") -> [219,255,237] | E185: =C185+B185*256+A185*256*256 -> 14417901 | F185: 0.9355 | G185: 0.8727 | H185: 0.9429 | J185: 0.6264 | K185: 0 | L185: 0.7002
A186: 219 | B186: 255 | C186: 228 | D186: =_xlfn.CONCAT("[",A186,",",B186,",",C186,"]") -> [219,255,228] | E186: =C186+B186*256+A186*256*256 -> 14417892 | F186: 0.9352 | G186: 0.8727 | H186: 0.945 | J186: 0.6262 | K186: 0 | L186: 0.7217
A187: 219 | B187: 255 | C187: 219 | D187: =_xlfn.CONCAT("[",A187,",",B187,",",C187,"]") -> [219,255,219] | E187: =C187+B187*256+A187*256*256 -> 14417883 | F187: 0.9352 | G187: 0.8727 | H187: 0.947 | J187: 0.6259 | K187: 0 | L187: 0.7419
A188: 228 | B188: 255 | C188: 219 | D188: =_xlfn.CONCAT("[",A188,",",B188,",",C188,"]") -> [228,255,219] | E188: =C188+B188*256+A188*256*256 -> 15007707 | F188: 0.9335 | G188: 0.8727 | H188: 0.947 | J188: 0.6074 | K188: 0 | L188: 0.7424
A189: 237 | B189: 255 | C189: 219 | D189: =_xlfn.CONCAT("[",A189,",",B189,",",C189,"]") -> [237,255,219] | E189: =C189+B189*256+A189*256*256 -> 15597531 | F189: 0.9316 | G189: 0.8727 | H189: 0.947 | J189: 0.5879 | K189: 0 | L189: 0.7427
A190: 246 | B190: 255 | C190: 219 | D190: =_xlfn.CONCAT("[",A190,",",B190,",",C190,"]") -> [246,255,219] | E190: =C190+B190*256+A190*256*256 -> 16187355 | F190: 0.9294 | G190: 0.8727 | H190: 0.947 | J190: 0.5675 | K190: 0 | L190: 0.7432
A191: 255 | B191: 255 | C191: 219 | D191: =_xlfn.CONCAT("[",A191,",",B191,",",C191,"]") -> [255,255,219] | E191: =C191+B191*256+A191*256*256 -> 16777179 | F191: 0.9275 | G191: 0.8727 | H191: 0.9472 | J191: 0.5465 | K191: 0 | L191: 0.7437
A192: 255 | B192: 246 | C192: 219 | D192: =_xlfn.CONCAT("[",A192,",",B192,",",C192,"]") -> [255,246,219] | E192: =C192+B192*256+A192*256*256 -> 16774875 | F192: 0.9252 | G192: 0.8727 | H192: 0.9452 | J192: 0.5241 | K192: 0 | L192: 0.7262
A193: 255 | B193: 237 | C193: 219 | D193: =_xlfn.CONCAT("[",A193,",",B193,",",C193,"]") -> [255,237,219] | E193: =C193+B193*256+A193*256*256 -> 16772571 | F193: 0.9226 | G193: 0.8727 | H193: 0.9432 | J193: 0.4992 | K193: 0 | L193: 0.7068
A194: 255 | B194: 228 | C194: 219 | D194: =_xlfn.CONCAT("[",A194,",",B194,",",C194,"]") -> [255,228,219] | E194: =C194+B194*256+A194*256*256 -> 16770267 | F194: 0.9199 | G194: 0.8727 | H194: 0.9414 | J194: 0.4711 | K194: 0 | L194: 0.685

Sheet White Light data
A1: Transition brightness=255, between highest and lowest temperature | I1: Transition brightness=255, between 300 (mid white) and lowest temperature
B2: 3000kHz | C2: 3000kHz | D2: 3000kHz | E2: 10kHz | J2: 3000kHz | K2: 3000kHz | L2: 3000kHz | M2: 10kHz
A3: temperature | B3: red | C3: green | D3: blue | E3: white | I3: temperature | J3: red | K3: green | L3: blue | M3: white
A4: 588 | B4: 0 | C4: 0.344 | D4: 1 | E4: 0.067 | I4: 300 | J4: 0.746 | K4: 1 | L4: 0.953 | M4: 0.9
A5: 153 | B5: 0.188 | C5: 0.01 | D5: 0.188 | E5: 0.335 | I5: 153 | J5: 1 | K5: 0.01 | L5: 0.188 | M5: 0.35
A29: 100% bright | B29: 3kHz pwm | C29: 3kHz pwm | D29: 3kHz pwm | E29: 10kHz pwm
A30: temperature | B30: red | C30: green | D30: blue | E30: white
A31: 588 | B31: 0 | C31: 0.344 | D31: 1 | E31: 0.068
A32: 501 | B32: 0 | C32: 0.344 | D32: 1 | E32: 0.068
A33: 500 | B33: 0 | C33: 0.237 | D33: 1 | E33: 0.093
A34: 455 | B34: 0 | C34: 0.238 | D34: 1 | E34: 0.093
A35: 454 | B35: 0 | C35: 0.186 | D35: 1 | E35: 0.12
A36: 417 | B36: 0 | C36: 0.186 | D36: 1 | E36: 0.12
A37: 416 | B37: 0 | C37: 0.149 | D37: 1 | E37: 0.167
A38: 371 | B38: 0 | C38: 0.149 | D38: 1 | E38: 0.167
A39: 370 | B39: 0 | C39: 0.135 | D39: 1 | E39: 0.325
A40: 334 | B40: 0 | C40: 0.135 | D40: 1 | E40: 0.325
A41: 333 | B41: 0.097 | C41: 0.314 | D41: 1 | E41: 0.74
A42: 313 | B42: 0.097 | C42: 0.314 | D42: 1 | E42: 0.74
A43: 312 | B43: 0.745 | C43: 1 | D43: 0.953 | E43: 0.905
A44: 295 | B44: 0.746 | C44: 1 | D44: 0.953 | E44: 0.905
A45: 294 | B45: 1 | C45: 1 | D45: 1 | E45: 1
A46: 251 | B46: 1 | C46: 1 | D46: 1 | E46: 1
A47: 250 | B47: 1 | C47: 0.267 | D47: 0.485 | E47: 0.765
A48: 223 | B48: 1 | C48: 0.267 | D48: 0.485 | E48: 0.765
A49: 222 | B49: 1 | C49: 0 | D49: 0.355 | E49: 0.608
A50: 201 | B50: 1 | C50: 0 | D50: 0.355 | E50: 0.61
A51: 200 | B51: 1 | C51: 0 | D51: 0.282 | E51: 0.488
A52: 182 | B52: 1 | C52: 0 | D52: 0.281 | E52: 0.49
A53: 181 | B53: 1 | C53: 0 | D53: 0.313 | E53: 0.393
A54: 173 | B54: 1 | C54: 0 | D54: 0.313 | E54: 0.39
A55: 172 | B55: 1 | C55: 0 | D55: 0.18 | E55: 0.422
A56: 167 | B56: 1 | C56: 0 | D56: 0.18 | E56: 0.422
A57: 166 | B57: 1 | C57: 0 | D57: 0.218 | E57: 0.368
A58: 154 | B58: 1 | C58: 0 | D58: 0.218 | E58: 0.368
A59: 153 | B59: 1 | C59: 0 | D59: 0.187 | E59: 0.335
A63: 1% bright | B63: 3kHz pwm | C63: 3kHz pwm | D63: 3kHz pwm | E63: 10kHz pwm
A64: temperature | B64: red | C64: green | D64: blue | E64: white
A65: 588 | B65: 0.873 | C65: 0.907 | D65: 1 | E65: 0.063
A66: 501 | B66: 0.873 | C66: 0.907 | D66: 1 | E66: 0.062
A67: 500 | B67: 0.873 | C67: 0.896 | D67: 1 | E67: 0.063
A68: 455 | B68: 0.873 | C68: 0.896 | D68: 1 | E68: 0.063
A69: 454 | B69: 0.872 | C69: 0.891 | D69: 1 | E69: 0.0675
A70: 417 | B70: 0.873 | C70: 0.891 | D70: 1 | E70: 0.0675
A71: 416 | B71: 0.873 | C71: 0.888 | D71: 1 | E71: 0.07
A72: 371 | B72: 0.873 | C72: 0.888 | D72: 1 | E72: 0.07
A73: 370 | B73: 0.873 | C73: 0.887 | D73: 1 | E73: 0.088
A74: 334 | B74: 0.873 | C74: 0.887 | D74: 1 | E74: 0.088
A75: 333 | B75: 0.882 | C75: 0.904 | D75: 1 | E75: 0.128
A76: 313 | B76: 0.882 | C76: 0.904 | D76: 1 | E76: 0.128
A77: 312 | B77: 0.947 | C77: 1 | D77: 0.968 | E77: 0.145
A78: 295 | B78: 0.947 | C78: 1 | D78: 0.968 | E78: 0.145
A79: 294 | B79: 0.999 | C79: 1 | D79: 1 | E79: 0.154
A80: 251 | B80: 0.999 | C80: 1 | D80: 1 | E80: 0.155
A81: 250 | B81: 1 | C81: 0.899 | D81: 0.921 | E81: 0.13
A82: 223 | B82: 1 | C82: 0.899 | D82: 0.921 | E82: 0.13
A83: 222 | B83: 1 | C83: 0.873 | D83: 0.908 | E83: 0.115
A84: 201 | B84: 1 | C84: 0.873 | D84: 0.908 | E84: 0.115
A85: 200 | B85: 1 | C85: 0.873 | D85: 0.901 | E85: 0.103
A86: 182 | B86: 1 | C86: 0.872 | D86: 0.901 | E86: 0.103
A87: 181 | B87: 0.999 | C87: 0.872 | D87: 0.904 | E87: 0.093
A88: 173 | B88: 0.999 | C88: 0.872 | D88: 0.904 | E88: 0.095
A89: 172 | B89: 1 | C89: 0.873 | D89: 0.891 | E89: 0.098
A90: 167 | B90: 1 | C90: 0.873 | D90: 0.891 | E90: 0.098
A91: 166 | B91: 1 | C91: 0.873 | D91: 0.895 | E91: 0.09
A92: 154 | B92: 1 | C92: 0.873 | D92: 0.894 | E92: 0.09
A93: 153 | B93: 1 | C93: 0.873 | D93: 0.892 | E93: 0.088
A98: Tests to see if transition between 1% - 100% brightness is linear on all channels (spoiler: yes, it is)
A100: temperature | B100: brightness | C100: red | D100: green | E100: blue | F100: white | H100: temperature | I100: brightness | J100: red | K100: green | L100: blue | M100: white | O100: temperature | P100: brightness | Q100: red | R100: green | S100: blue | T100: white
A101: 588 | B101: 1 | C101: 0.873 | D101: 0.907 | E101: 1 | F101: 0.063 | H101: 153 | I101: 1 | J101: 1 | K101: 0.873 | L101: 0.892 | M101: 0.088 | O101: 275 | P101: 1 | Q101: 0.999 | R101: 1 | S101: 1 | T101: 0.154
B102: 25 | C102: 0.661 | D102: 0.771 | E102: 1 | F102: 0.063 | I102: 25 | J102: 1 | K102: 0.661 | L102: 0.721 | M102: 0.148 | P102: 25 | Q102: 1 | R102: 1 | S102: 1 | T102: 0.358
B103: 50 | C103: 0.441 | D103: 0.629 | E103: 1 | F103: 0.064 | I103: 50 | J103: 1 | K103: 0.44 | L103: 0.543 | M103: 0.21 | P103: 50 | Q103: 1 | R103: 1 | S103: 1 | T103: 0.573
B104: 75 | C104: 0.229 | D104: 0.492 | E104: 1 | F104: 0.065 | I104: 75 | J104: 1 | K104: 0.229 | L104: 0.372 | M104: 0.27 | P104: 75 | Q104: 1 | R104: 1 | S104: 1 | T104: 0.778
B105: 100 | C105: 0 | D105: 0.344 | E105: 1 | F105: 0.068 | I105: 100 | J105: 1 | K105: 0 | L105: 0.187 | M105: 0.335 | P105: 100 | Q105: 1 | R105: 1 | S105: 1 | T105: 1

Sheet Nightlight data
A1: In night light mode, the follwing duty cycles are used (at 3 kHz)
A3: Red | B3: 0.9601
A4: Green | B4: 0.96
A5: Blue | B5: 0.9694
A6: White | B6: 0
